Workbook

Sheet Disclaimer
A1: DISCLAIMER
A3: This document contains forward-looking statements regarding intention, expectations or estimates of the Company or its management at the date of issue thereof, relating to various aspects, including the growth of various lines of business and the business overall, the market share, the results of the Company and other aspects of the activity and status thereof. Analysts and investors should bear in mind that such estimates do not amount to any warranty as to the future behaviour or results of the Company, and they shall bear all risks and uncertainties with regard to relevant aspects, and thus, the real future results and behaviour of the Company might be substantially different from what is stated in the said predictions or estimates. | B3: The statements in this statement should be taken into account by any persons or entities who may have to make decisions or prepare or disseminate opinions on securities issued by the Company and, in particular, by the analysts who handle this document. All are invited to consult the documentation and information published or registered by the Company before the National Securities Market Commission. The financial information contained in this document has been prepared under International Financial Reporting Standards (IFRS). This financial information is unaudited and, therefore, is subject to potential future modifications. This document is only provided for information purposes and does not constitute, nor may it be interpreted as, an offer to sell or exchange or acquire, or solicitation for offers to purchase or accept any kind of compromise.

Sheet P&L
A1: CONSOLIDATED PROFIT AND LOSS ACCOUNT
G2: CONSOLIDATED PROFIT AND LOSS ACCOUNT
A3: Thousand Euro | B3: 1H25 | C3: 1H24 | D3: Var Abs | E3: Var %
A4: Circulation revenues | B4: 47070.06034 | C4: 49119.4211 | D4: -2049.36076 | E4: -0.04172200556
A5: Advertising revenues | B5: 66943.4052 | C5: 67023.52111 | D5: -80.11591 | E5: -0.001195340213
A6: Other revenues | B6: 45866.23963 | C6: 46593.49904 | D6: -727.2594 | E6: -0.01560860238
A7: Total revenue | B7: 159879.7052 | C7: 162736.4412 | D7: -2856.73607 | E7: -0.01755437226
A8: Staff costs | B8: -79054.7672 | C8: -85667.35917 | D8: 6612.59196 | E8: 0.07718916545
A9: Procurements | B9: -12511.25304 | C9: -11893.18298 | D9: -618.07006 | E9: -0.05196843108
A10: External Services | B10: -68848.66633 | C10: -62315.24399 | D10: -6533.42234 | E10: -0.1048446884
A11: Provisions | B11: -443.64331 | C11: -647.27237 | D11: 203.62906 | E11: 0.3145956315
A12: Operating expenses (without D&A) | B12: -160858.3299 | C12: -160523.0585 | D12: -335.27138 | E12: -0.002088618191
A13: EBITDA | B13: -978.6247133 | C13: 2213.382737 | D13: -3192.00745 | E13: n.r.
A14: Depreciation and amortization | B14: -11209.59644 | C14: -11488.64257 | D14: 279.046135 | E14: 0.02428886905
A15: Impairment/gains on disposal of tan. & intan. assets | B15: 9371.26171 | C15: 1973.83821 | D15: 7397.4235 | E15: n.r.
A16: EBIT | B16: -2816.959438 | C16: -7301.421623 | D16: 4484.462185 | E16: 0.6141902791
A17: Impairments/reversal of other intangible assets | B17: 0 | C17: -3529 | D17: 3529 | E17: 1
A18: Profit of companies acc. equity method | B18: -481.384347 | C18: 104.398 | D18: -585.782347 | E18: n.r.
A19: Net financial income | B19: -2021.081918 | C19: -1063.364267 | D19: -957.7176517 | E19: -0.9006487069
A20: Net income from disposal of non-current assets | B20: 0 | C20: 529 | D20: -529 | E20: -1
A21: Profit before taxes | B21: -5319.425704 | C21: -11260.38785 | D21: 5940.962146 | E21: 0.5275983586
A22: Corporation tax | B22: -1260.86765 | C22: 2348.954575 | D22: -3609.822225 | E22: n.r.
A23: Profit after taxes | B23: 15663.80508 | C23: -1775.61239 | D23: 17439.41747 | E23: 0.2615897858
A24: BDI assets for sale/discontinued operations | B24: -6580.293354 | C24: -8911.433275 | D24: 2331.139921 | E24: n.r.
A25: Net profit for the year | B25: 9083.511726 | C25: -10687.04566 | D25: 19770.55739 | E25: n.r.
A26: Minority interests | B26: -2687.933799 | C26: -2819.759347 | D26: 131.8255474 | E26: 0.04675063763
A27: Net profit attributable to the parent | B27: 6395.577927 | C27: -13506.80501 | D27: 19902.38294 | E27: n.r.
A29: Staff costs ex non recurring costs | B29: -73549.78942 | C29: -78728.50712 | D29: 5178.71769 | E29: 0.06577944737
A30: Operating Expenses ex non recurring costs | B30: -155353.3521 | C30: -153584.2065 | D30: -1769.14565 | E30: -0.01151905974
A31: EBITDA ex compens. | B31: 4526.353067 | C31: 9152.234787 | D31: -4625.88172 | E31: -0.5054373962

Sheet Balance Sheet
A1: CONSOLIDATED BALANCE SHEETS
A3: Thousand Euro | B3: 1H25 | C3: 2024 | D3: Var abs | F3: Thousand Euro | G3: 1H25 | H3: 2024 | I3: Var abs
A4: ASSETS | F4: EQUITY AND LIABILITIES
A5: NON CURRENT ASSETS | F5: Equity
A6: Intangible assets | B6: 111891.6423 | C6: 115938.7962 | D6: -4047.15391 | F6: Of the Parent | G6: 112809.9379 | H6: 106451.3513 | I6: 6358.586626
A7: Goodwill | B7: 67104.48403 | C7: 68701.69403 | D7: -1597.21 | F7: Share capital | G7: 24863.94861 | H7: 24863.94861 | I7: 0
A8: Intangible assets | B8: 44787.1583 | C8: 47237.10221 | D8: -2449.94391 | F8: Reserves | G8: 88378.16519 | H8: 185756.0396 | I8: -97377.87439
A9: Property, plant and equipment | B9: 49136.12755 | C9: 53384.91704 | D9: -4248.789495 | F9: Treasury shares | G9: -6827.75382 | H9: -6919.44791 | I9: 91.69409
A10: Use of leases | B10: 13166.66747 | C10: 14602.2641 | D10: -1435.59663
A11: Investments accounted for using the equity method | B11: 2924.756928 | C11: 2958.45916 | D11: -33.70223222 | F11: Net profit for the year | G11: 6395.577927 | H11: -97249.189 | I11: 103644.7669
A12: Financial assets | B12: 2359.107255 | C12: 2338.097435 | D12: 21.00982 | F12: Of minority interest | G12: 55932.92595 | H12: 55130.18261 | I12: 802.743335
A13: Non-current investment securities | B13: 1093.46091 | C13: 1093.46091 | D13: 0
A14: Other non current financial assets | B14: 1265.646345 | C14: 1244.636525 | D14: 21.00982 | F14: NON CURRENT LIABILITIES
A15: Other non current receivables | B15: 3257.954851 | C15: 3742.040001 | D15: -484.08515 | F15: Deferred income | G15: 6e-05 | H15: 6e-05 | I15: 0
A16: Deferred tax assets | B16: 27591.58094 | C16: 27741.41263 | D16: -149.83169 | F16: Provisions | G16: 630.29496 | H16: 697.9269 | I16: -67.63194
B17: 210327.8373 | C17: 220705.9866 | D17: -10378.14929 | F17: Bank borrowings and other financial liabilities | G17: 26121.24707 | H17: 45073.30027 | I17: -18952.0532
A18: CURRENT ASSETS | F18: Other non-current payables | G18: 6427.516145 | H18: 7398.269405 | I18: -970.75326
A19: Inventories | B19: 20184.20618 | C19: 18639.66002 | D19: 1544.546155 | F19: Deferred tax liabilities | G19: 12578.98141 | H19: 12158.59875 | I19: 420.38266
A20: Trade and other receivables | B20: 77122.93621 | C20: 77150.9158 | D20: -27.9795952 | G20: 45758.03965 | H20: 65328.09539 | I20: -19570.05574
A21: Tax receivables | B21: 13308.74452 | C21: 10383.80034 | D21: 2924.944182 | F21: CURRENT LIABILITIES
A22: Cash and cash equivalents | B22: 17296.59133 | C22: 18983.99337 | D22: -1687.402038 | F22: Bank borrowings and other financial liabilities | G22: 33585.62115 | H22: 33627.95346 | I22: -42.3323117
B23: 127912.4782 | C23: 125158.3695 | D23: 2754.108703 | F23: Trade and other payables | G23: 86749.46102 | H23: 82807.0041 | I23: 3942.456923
F24: Tax payables | G24: 13267.02988 | H24: 12382.4693 | I24: 884.5605835
A25: Assets held for sale and discontinued operations | B25: 9862.7 | C25: 9862.7 | D25: 0 | G25: 133602.1121 | H25: 128817.4269 | I25: 4784.685195
A27: TOTAL ASSETS | B27: 348103.0156 | C27: 355727.0562 | D27: -7624.040584 | F27: TOTAL EQUITY AND LIABILITIES | G27: 348103.0156 | H27: 355727.0561 | I27: -7624.040584

Sheet Net Debt
A1: NET DEBT
A3: Thousand Euro | B3: 1H25 | C3: 2024 | D3: Var Abs | E3: Var %
A5: Bank borrowings and other financial liabilities (s.t.) | B5: 33585.62115 | C5: 33627.95346 | D5: -42.3323117 | E5: -0.001258842937
A6: Bank borrowings and other financial liabilities (l.t.) | B6: 26121.24707 | C6: 45073.30027 | D6: -18952.0532 | E6: -0.4204718333
A7: Gross debt | B7: 59706.86822 | C7: 78701.25373 | D7: -18994.38551 | E7: -0.2413479406
A8: + Cash and cash equivalents | B8: 17535.46622 | C8: 19139.84237 | D8: -1604.376148 | E8: -0.08382389554
A9: + Other non current financial asstes | B9: 603.318556 | C9: 901.6635818 | D9: -298.3450258 | E9: -0.3308828612
A10: Deferred expenses | B10: 470.25022 | C10: 670.25668 | D10: -200.00646 | E10: -0.298402785
A11: Net cash position/ (net debt) | B11: -42038.33366 | C11: -59330.00446 | D11: 17291.6708 | E11: 0.2914490055

Sheet CashFlow
A1: CASH FLOW STATEMENT
A3: Thousand Euro | B3: 1H25 | C3: 1H24 | D3: Var Abs | E3: % Var
A5: Net profit attibutable to the parent | B5: 6395.946927 | C5: -13506.80501 | D5: 19902.75194 | E5: n.r.
A6: Adjustments to net profit | B6: -9491.978436 | C6: 14457.68489 | D6: -23949.66332 | E6: n.r.
A7: Cash flows from ordinary operating activities before changes in working capital | B7: -3096.031508 | C7: 950.8798767 | D7: -4046.911385 | E7: n.r.
A8: Changes in working capital & others | B8: -2745.153688 | C8: -8556.230319 | D8: 5811.076632 | E8: 0.6791631846
A9: Other payables | B9: 6361.659666 | C9: 5757.267306 | D9: 604.3923592 | E9: 0.1049790338
A10: Income tax paid | B10: 1399.64743 | C10: -152.33832 | D10: 1551.98575 | E10: n.r.
A11: Interests deduction for tax purposes | B11: -4595.206305 | C11: 1.11413101e-13 | D11: -4595.206305 | E11: n.r.
A12: Net cash flow from operating activities (I) | B12: -2675.084406 | C12: -2000.421456 | D12: -674.6629493 | E12: -0.3372604044
A13: Acquisitions of intangible and property, plan and equipment | B13: -7081.846366 | C13: -8008.487336 | D13: 926.6409698 | E13: 0.1157073653
A14: Acquisitions of financial assets, subsidiaries and associates | B14: 30343.52218 | C14: 3949.083308 | D14: 26394.43888 | E14: n.r.
A15: Interests and dividends received | B15: 357.2086425 | C15: 188.9557288 | D15: 168.2529137 | E15: 0.8904356318
A16: Other receivables and payables (investing) | B16: 278.89598 | C16: 151.23598 | D16: 127.66 | E16: 0.8441113021
A17: Net cash flow from investing activities (II) | B17: 23897.78044 | C17: -3719.212319 | D17: 27616.99276 | E17: n.r.
A18: Interests and dividends paid | B18: -3152.78644 | C18: -8363.705438 | D18: 5210.918999 | E18: 0.6230395172
A19: Cash inflows/ (outflows) relating to bank borrowings | B19: -20516.66282 | C19: 5047.92779 | D19: -25564.59061 | E19: n.r.
A20: Other receivables and payables (financing) | B20: 709.90697 | C20: -2088.32464 | D20: 2798.23161 | E20: n.r.
A21: Equity related instruments without financial cost | B21: 81.25111547 | C21: -376.989379 | D21: 458.2404945 | E21: n.r.
A22: Equity related instruments with financial cost | B22: 51.22 | C22: 239.287 | D22: -188.067 | E22: -0.7859474188
A23: Net cash flows from financing activities (III) | B23: -22827.07117 | C23: -5541.804667 | D23: -17285.26651 | E23: n.r.
A24: Net increase in cash and cash equivalents (I + II + III) | B24: -1604.375139 | C24: -11261.43844 | D24: 9657.063304 | E24: 0.8575337292
A25: Cash and cash equivalents from acquired companies | B25: 0 | C25: 0 | D25: 0 | E25: n.a.
A26: Cash and cash equivalents of discounted operations | B26: 2.328306437e-13 | C26: 0 | D26: 2.328306437e-13 | E26: n.a.
A27: Cash and cash equivalents at beginning of the year | B27: 19139.8418 | C27: 24657.25767 | D27: -5517.415871 | E27: -0.2237643757
A28: Cash and cash equivalents at end of year | B28: 17535.46584 | C28: 13395.82071 | D28: 4139.64513 | E28: 0.3090251221

Sheet CAPEX
A1: CAPEX: (Additions to PPE and intangible assets)
A3: Thousand Euro | B3: 1Q25 | E3: 1Q24 | F3: 1T23 | H3: Var Abs
B4: Inmat. | C4: Mat. | D4: Total | E4: Inmat. | F4: Mat. | G4: Total | H4: Inmat. | I4: Mat. | J4: Total
A5: Newspapers | B5: 1866.117512 | C5: 711.470945 | D5: 2577.588457 | E5: 1454.273548 | F5: 1075.86169 | G5: 2530.135238 | H5: 411.8439641 | I5: -364.390745 | J5: 47.45321905
A6: Audiovisual | B6: 2.150526357 | C6: 5.79836 | D6: 7.948886357 | E6: 0.2955160235 | F6: 0 | G6: 0.2955160235 | H6: 1.855010333 | I6: 5.79836 | J6: 7.653370333
A7: Classified | B7: 150.5981946 | C7: 53.42923 | D7: 204.0274246 | E7: 322.8808771 | F7: 10.75209 | G7: 333.6329671 | H7: -172.2826825 | I7: 42.67714 | J7: -129.6055425
A8: Digital Services
A9: Gastronomy & Others | B9: 60.40362606 | C9: 88.62038 | D9: 149.0240061 | E9: 187.3997653 | F9: 60.70116 | G9: 248.1009253 | H9: -126.9961393 | I9: 27.91922 | J9: -99.07691929
A10: Corporate | B10: 67.81950093 | C10: 6.5 | D10: 74.31950093 | E10: 44.33645352 | F10: 16.431 | G10: 60.76745352 | H10: 23.4830474 | I10: -9.931 | J10: 13.5520474
A11: TOTAL | B11: 2147.08936 | C11: 865.818915 | D11: 3012.908275 | E11: 2009.18616 | F11: 1163.74594 | G11: 3172.9321 | H11: 137.9032 | I11: -297.927025 | J11: -160.023825

Sheet Line of Activity
B1: LINE OF ACTIVITY
B3: Thousand Euro | C3: 1Q25 | D3: 1Q24 | E3: Var Abs | F3: Var % | H3: 1H25 | I3: 1H24 | J3: Var Abs | K3: Var %
B5: Circulation Revenues
B6: Newspapers | C6: 23726.015 | D6: 24741.49645 | E6: -1015.48145 | F6: -0.04104365522 | H6: 47071.92178 | I6: 49121.75344 | J6: -2049.83166 | K6: -0.04172961095
B7: Audiovisual | C7: 0 | D7: 0 | E7: 0 | F7: n.a. | H7: 0 | I7: 0 | J7: 0 | K7: n.a.
B8: Diversification businesses | C8: =+C9+C10 -> 0 | D8: =+D9+D10 -> 0 | E8: =+C8-D8 -> 0 | F8: =+F7 -> n.a. | H8: 0 | I8: 0 | J8: 0 | K8: n.a.
B9: Classifieds & Digital services | C9: 0 | D9: 0 | E9: 0 | F9: n.a. | H9: 0 | I9: 0 | J9: 0 | K9: n.a.
B10: Gastronomy & Agencies | C10: 0 | D10: 0 | E10: 0 | F10: n.a. | H10: 0 | I10: 0 | J10: 0 | K10: n.a.
B11: Corporate & adjustments | C11: -0.931 | D11: -0.90919 | E11: -0.02181 | F11: -0.02398838527 | H11: -1.86144 | I11: -2.33234 | J11: 0.4709 | K11: 0.2019002375
B12: Total Circulation Revenues | C12: 23725.085 | D12: 24740.58726 | E12: -1015.50226 | F12: -0.04104600466 | H12: 47070.06034 | I12: 49119.4211 | J12: -2049.36076 | K12: -0.04172200556
B14: Advertising Revenues
B15: Newspapers | C15: 25295.588 | D15: 25818.92186 | E15: -523.33386 | F15: -0.02026939246 | H15: 55924.26783 | I15: 56666.98107 | J15: -742.713245 | K15: -0.0131066316
B16: Audiovisual | C16: 99.45 | D16: 133.80305 | E16: -34.35305 | F16: -0.2567434001 | H16: 210.59754 | I16: 246.31783 | J16: -35.72029 | K16: -0.14501707
B17: Diversification businesses | C17: =+C18+C19 -> 5401.92 | D17: =+D18+D19 -> 4940.17696 | E17: =+C17-D17 -> 461.74304 | F17: =+E17/D17 -> 0.09346690285 | H17: 10686.33828 | I17: 10123.55057 | J17: 562.78771 | K17: 0.05559192954
B18: Classifieds & Digital services | C18: 5327.681 | D18: 4896.99301 | E18: 430.68799 | F18: 0.08794948025 | H18: 10530.05245 | I18: 10008.71403 | J18: 521.33842 | K18: 0.05208845197
B19: Gastronomy & Agencies | C19: 74.239 | D19: 43.18395 | E19: 31.05505 | F19: 0.7191340764 | H19: 156.28583 | I19: 114.83654 | J19: 41.44929 | K19: 0.360941648
B20: Corporate & adjustments | C20: 127.28 | D20: 1.31533 | E20: 125.96467 | F20: n.r. | H20: 122.201555 | I20: -13.32836 | J20: 135.529915 | K20: n.r.
B21: Total Advertising Revenues | C21: 30924.238 | D21: 30894.2172 | E21: 30.0208 | F21: 0.0009717287804 | H21: 66943.4052 | I21: 67023.52111 | J21: -80.11591 | K21: -0.001195340213
B23: Other Revenues
B24: Newspapers | C24: 10801.638 | D24: 12692.73696 | E24: -1891.09896 | F24: -0.1489906366 | H24: 24446.48485 | I24: 26822.68481 | J24: -2376.199955 | K24: -0.08858919127
B25: Audiovisual | C25: 1151.841 | D25: 1091.96098 | E25: 59.88002 | F25: 0.05483714262 | H25: 2336.85318 | I25: 2183.03574 | J25: 153.81744 | K25: 0.07046033978
B26: Diversification businesses | C26: =+C27+C28 -> 11572.138 | D26: =+D27+D28 -> 9447.01865 | E26: =+C26-D26 -> 2125.11935 | F26: =+E26/D26 -> 0.2249513237 | H26: 21768.44749 | I26: 19475.8521 | J26: 2292.59539 | K26: 0.1177147669
B27: Classifieds & Digital services | C27: 607.747 | D27: 50.90149 | E27: 556.84551 | F27: n.r. | H27: 1189.02398 | I27: 143.66254 | J27: 1045.36144 | K27: n.r.
B28: Gastronomy & Agencies | C28: 10964.391 | D28: 9396.11716 | E28: 1568.27384 | F28: 0.1669065863 | H28: 20579.42351 | I28: 19332.18956 | J28: 1247.23395 | K28: 0.06451591767
B29: Corporate & adjustments | C29: -1334.897 | D29: -1024.90414 | E29: -309.99286 | F29: -0.3024603452 | H29: -2685.54597 | I29: -1888.073615 | J29: -797.472355 | K29: -0.4223735498
B30: Total Other Revenues | C30: 22190.72 | D30: 22206.81245 | E30: -16.09245 | F30: -0.00072466276 | H30: 45866.23956 | I30: 46593.49904 | J30: -727.25948 | K30: -0.0156086041
B32: Total Revenues
B33: Newspapers | C33: 59823.242 | D33: 63253.15527 | E33: -3429.91327 | F33: -0.05422517273 | H33: 127442.6745 | I33: 132611.4193 | J33: -5168.74486 | K33: -0.03897661971
B34: Audiovisual | C34: 1251.292 | D34: 1225.76403 | E34: 25.52797 | F34: 0.02082616994 | H34: 2547.45072 | I34: 2429.35357 | J34: 118.09715 | K34: 0.04861258215
B35: Diversification businesses | C35: =+C36+C37 -> 16974.057 | D35: =+D36+D37 -> 14387.19561 | E35: =+C35-D35 -> 2586.86139 | F35: =+E35/D35 -> 0.1798030318 | H35: 32454.78577 | I35: 29599.40267 | J35: 2855.3831 | K35: 0.09646759199
B36: Classifieds & Digital services | C36: 5935.428 | D36: 4947.8945 | E36: 987.5335 | F36: 0.199586612 | H36: 11719.07643 | I36: 10152.37657 | J36: 1566.69986 | K36: 0.1543185331
B37: Gastronomy & Agencies | C37: 11038.629 | D37: 9439.30111 | E37: 1599.32789 | F37: 0.1694328713 | H37: 20735.70934 | I37: 19447.0261 | J37: 1288.68324 | K37: 0.06626633982
B38: Corporate & adjustments | C38: -1208.547 | D38: -1024.498 | E38: -184.049 | F38: -0.1796479837 | H38: -2565.205855 | I38: -1903.734315 | J38: -661.47154 | K38: -0.3474600078
B39: Total Revenues | C39: 76840.043 | D39: 77841.61691 | E39: -1001.57391 | F39: -0.0128668179 | H39: 159879.7051 | I39: 162736.4412 | J39: -2856.73615 | K39: -0.01755437275
B41: EBITDA
B42: Newspapers | C42: -1929.655 | D42: -3361.404323 | E42: 1431.749323 | F42: 0.4259378479 | H42: 1819.009772 | I42: 6268.522202 | J42: -4449.51243 | K42: -0.7098184049
B43: Audiovisual | C43: 723.086 | D43: 694.9905 | E43: 28.0955 | F43: 0.04042573244 | H43: 1468.30772 | I43: 1362.55724 | J43: 105.75048 | K43: 0.07761177064
B44: Diversification businesses | C44: =+C45+C46 -> 1895.424 | D44: =+D45+D46 -> 1554.7023 | E44: =+C44-D44 -> 340.7217 | F44: =+E44/D44 -> 0.2191555901 | H44: 4374.053195 | I44: 3854.637465 | J44: 519.41573 | K44: 0.1347508643
B45: Classifieds & Digital services | C45: 1152.119 | D45: 902.50852 | E45: 249.61048 | F45: 0.2765740982 | H45: 2568.68531 | I45: 2196.379 | J45: 372.30631 | K45: 0.1695091375
B46: Gastronomy & Agencies | C46: 743.305 | D46: 652.19378 | E46: 91.11122 | F46: 0.139699615 | H46: 1805.367885 | I46: 1658.258465 | J46: 147.10942 | K46: 0.0887132031
B47: Corporate & adjustments | C47: -3645.699 | D47: -6408.27644 | E47: 2762.57744 | F47: 0.4310952353 | H47: -8639.99548 | I47: -9272.33417 | J47: 632.33869 | K47: 0.06819627921
B48: Total EBITDA | C48: -2956.845 | D48: -7519.987963 | E48: 4563.142963 | F48: 0.6068018972 | H48: -978.6247933 | I48: 2213.382737 | J48: -3192.00753 | K48: n.r.
B50: EBITDA Margin
B51: Newspapers | C51: -0.0322559416 | D51: -0.05314208136 | E51: 2.088613976 | H51: 0.01427316069 | I51: 0.04726985228 | J51: -3.299669159
B52: Audiovisual | C52: 0.577871512 | D52: 0.5669855559 | E52: 1.088595607 | H52: 0.5763831694 | I52: 0.5608723476 | J52: 1.551082183
B53: Diversification businesses | C53: =+C44/C35 -> 0.1116659382 | D53: =+D44/D35 -> 0.1080615251 | E53: =+C53*100-D53*100 -> 0.3604413069 | H53: 0.1347737503 | I53: 0.1302268667 | J53: 0.454688368
B54: Classifieds & Digital services | C54: 0.1941088326 | D54: 0.1824025391 | E54: 1.170629349 | H54: 0.2191883742 | I54: 0.2163413645 | J54: 0.2847009723
B55: Gastronomy & Agencies | C55: 0.06733671364 | D55: 0.06909343948 | E55: -0.1756725838 | H55: 0.08706564388 | I55: 0.08527054247 | J55: 0.1795101409
B56: Corporate & adjustments | C56: 3.016596789 | D56: 6.255040459 | E56: -323.8443669 | H56: n.a | I56: n.a
B57: Total EBITDA Margin | C57: -0.03848052245 | D57: -0.09660626618 | E57: 5.812574373 | H57: -0.006121006996 | I57: 0.01360102703 | J57: -1.972203403
B59: EBITDA ex compens.
B60: Newspapers | C60: -1895.07 | D60: 606.0202967 | E60: -2501.090297 | F60: n.r. | H60: 4891.209572 | I60: 10302.60015 | J60: -5411.39058 | K60: -0.5252451323
B61: Audiovisual | C61: 723.35 | D61: 694.9905 | E61: 28.3595 | F61: 0.04080559375 | H61: 1468.57262 | I61: 1362.55724 | J61: 106.01538 | K61: 0.07780618449
B62: Diversification businesses | C62: =+C63+C64 -> 2064.427 | D62: =+D63+D64 -> 1884.74668 | E62: =+C62-D62 -> 179.68032 | F62: =+E62/D62 -> 0.09533393634 | H62: 4592.398835 | I62: 4228.041375 | J62: 364.35746 | K62: 0.0861764178
B63: Classifieds & Digital services | C63: 1215.353 | D63: 1111.5146 | E63: 103.8384 | F63: 0.09342063523 | H63: 2631.91983 | I63: 2405.38508 | J63: 226.53475 | K63: 0.09417816377
B64: Gastronomy & Agencies | C64: 849.074 | D64: 773.23208 | E64: 75.84192 | F64: 0.09808429055 | H64: 1960.479005 | I64: 1822.656295 | J64: 137.82271 | K64: 0.07561640139
B65: Corporate & adjustments | C65: -3251.334 | D65: -3980.62658 | E65: 729.29258 | F65: 0.1832104985 | H65: -6425.73804 | I65: -6740.96398 | J65: 315.22594 | K65: 0.04676273912
B66: Total EBITDA ex compens. | C66: -2358.626 | D66: -794.8691033 | E66: -1563.756897 | F66: n.r. | H66: 4526.352987 | I66: 9152.234787 | J66: -4625.8818 | K66: -0.5054374049
B68: EBIT
B69: Newspapers | C69: -6011.469 | D69: -6004.860733 | E69: -6.608266668 | F69: -0.00110048625 | H69: 2602.551187 | I69: -780.7303783 | J69: 3383.281565 | K69: n.r.
B70: Audiovisual | C70: 717.599 | D70: 688.9935 | E70: 28.6055 | F70: 0.04151780822 | H70: 1457.55136 | I70: 1350.75524 | J70: 106.79612 | K70: 0.0790640057
B71: Diversification businesses | C71: =+C72+C73 -> 734.152 | D71: =+D72+D73 -> 573.78148 | E71: =+C71-D71 -> 160.37052 | F71: =+E71/D71 -> 0.2794975537 | H71: 2018.346705 | I71: 1825.997865 | J71: 192.34884 | K71: 0.1053390279
B72: Classifieds & Digital services | C72: 507.527 | D72: 398.00363 | E72: 109.52337 | F72: 0.2751818369 | H72: 1274.25202 | I72: 1148.16901 | J72: 126.08301 | K72: 0.1098122392
B73: Gastronomy & Agencies | C73: 226.625 | D73: 175.77785 | E73: 50.84715 | F73: 0.2892693818 | H73: 744.094685 | I73: 677.828855 | J73: 66.26583 | K73: 0.09776189006
B74: Corporate & adjustments | C74: -3773.969 | D74: -6629.14657 | E74: 2855.17757 | F74: 0.4307006249 | H74: -8895.40877 | I74: -9697.44435 | J74: 802.03558 | K74: 0.08270587085
B75: Total EBIT | C75: -8333.686 | D75: -11371.23232 | E75: 3037.546323 | F75: 0.2671255179 | H75: -2816.959518 | I75: -7301.421623 | J75: 4484.462105 | K75: 0.6141902682
B77: EBIT Margin
B78: Newspapers | C78: -0.1004871819 | D78: -0.09493377378 | E78: 0.001926657075 | H78: 0.02042134785 | I78: -0.005887354063
B79: Audiovisual | C79: 0.5734864444 | D79: 0.5620930972 | E79: 1.120555218 | H79: 0.5721607678 | I79: 0.5560142651 | J79: 1.61465027
B80: Diversification businesses | C80: =+C71/C35 -> 0.04325141597 | D80: =+D71/D35 -> 0.0398813984 | E80: =+C80*100-D80*100 -> 0.3370017568 | H80: 0.062189494 | I80: 0.06169036198 | J80: 0.04991320261
B81: Classifieds & Digital services | C81: 0.0855080712 | D81: 0.08043898875 | E81: 0.1109059794 | H81: 0.1087331436 | I81: 0.1130936192 | J81: -0.4360475649
B82: Gastronomy & Agencies | C82: 0.02053017635 | D82: 0.01862191363 | E82: 0.03179282392 | H82: 0.03588469884 | I82: 0.03485514194 | J82: 0.1029556906
B83: Corporate & adjustments | C83: 3.122732504 | D83: 6.470629098 | E83: -15.51313819 | H83: n.a | I83: n.a
B84: Total EBIT Margin | C84: -0.1084549888 | D84: -0.1460816562 | E84: -3.032773012 | H84: -0.0176192439 | I84: -0.04486654352 | J84: 2.724729962

Sheet Newspapers
A1: NEWSPAPERS
A3: Thousand Euro | B3: 1Q25 | C3: 1Q24 | D3: Var Abs | E3: Var % | G3: 1H25 | H3: 1H24 | I3: Var Abs | J3: Var %
A5: Circulation Revenues
A6: Regionals | B6: 17613.278 | C6: 18399.4498 | D6: -786.1718 | E6: -0.04272800592 | G6: 34841.97953 | H6: 36581.62352 | I6: -1739.64399 | J6: -0.0475551335
A7: ABC | B7: 5784.963 | C7: 5974.39206 | D7: -189.42906 | E7: -0.03170683445 | G7: 11580.83852 | H7: 11814.74871 | I7: -233.91019 | J7: -0.01979815193
A8: Relevo | B8: 0.413 | C8: 0 | D8: 0 | E8: n.a. | G8: 0 | H8: 0 | I8: 0 | J8: n.a.
A9: Supplements & Magazines | B9: 1178.255 | C9: 1314.6166 | D9: -136.3616 | E9: -0.1037272768 | G9: 2338.21067 | H9: 2588.78831 | I9: -250.57764 | J9: -0.0967934068
A10: Adjustments intersegment | B10: -850.894 | C10: -946.96201 | D10: 96.06801 | E10: 0.1014486421 | G10: -1689.10694 | H10: -1863.4071 | I10: 174.30016 | J10: 0.09353842217
A11: Total Circulation Revenues | B11: 23726.015 | C11: 24741.49645 | D11: -1015.48145 | E11: -0.04104365522 | G11: 47071.92178 | H11: 49121.75344 | I11: -2049.83166 | J11: -0.04172961095
A13: Advertising Revenues
A14: Regionals | B14: 17983.141 | C14: 18304.31763 | D14: -321.17663 | E14: -0.01754649567 | G14: 39612.89035 | H14: 39778.33611 | I14: -165.445755 | J14: -0.004159192444
A15: ABC | B15: 5623.415 | C15: 6092.82434 | D15: -469.40934 | E15: -0.07704297938 | G15: 13310.22537 | H15: 13711.25643 | I15: -401.03106 | J15: -0.02924830865
A16: Relevo | B16: 532.529 | C16: 469.40356 | D16: 63.12544 | E16: 0.1344801049 | G16: 0 | H16: 0 | I16: 0 | J16: n.a.
A17: Supplements & Magazines | B17: 1157.773 | C17: 1076.16406 | D17: 81.60894 | E17: 0.07583317733 | G17: 3025.0121 | H17: 3460.49171 | I17: -435.47961 | J17: -0.125843275
A18: Adjustments intersegment | B18: -1.27 | C18: -123.78773 | D18: 122.51773 | E18: 0.9897405017 | G18: -23.86 | H18: -283.10318 | I18: 259.24318 | J18: 0.915719774
A19: Total Advertising Revenues | B19: 25295.588 | C19: 25818.92186 | D19: -523.33386 | E19: -0.02026939246 | G19: 55924.26783 | H19: 56666.98107 | I19: -742.713245 | J19: -0.0131066316
A21: Other Revenues
A22: Regionals | B22: 6004.95 | C22: 7342.139625 | D22: -1337.189625 | E22: -0.1821253331 | G22: 14300.60459 | H22: 16452.45707 | I22: -2151.85249 | J22: -0.1307921656
A23: ABC | B23: 6203.305 | C23: 6644.26476 | D23: -440.95976 | E23: -0.06636697602 | G23: 12183.35555 | H23: 12592.06387 | I23: -408.70832 | J23: -0.03245761173
A24: Relevo | B24: 11.361 | C24: 10.83522 | D24: 0.52578 | E24: 0.04852508763 | G24: 0 | H24: 0 | I24: 0 | J24: n.a.
A25: Supplements & Magazines | B25: 95.9 | C25: 151.73546 | D25: -55.83546 | E25: -0.3679789813 | G25: 950.25561 | H25: 1363.57473 | I25: -413.31912 | J25: -0.3031143882
A26: Adjustments intersegment | B26: -1513.879 | C26: -1456.238105 | D26: -57.640895 | E26: -0.03958205379 | G26: -2987.73089 | H26: -3585.410865 | I26: 597.679975 | J26: 0.1666977642
A27: Total Other Revenues | B27: 10801.638 | C27: 12692.73696 | D27: -1891.09896 | E27: -0.1489906366 | G27: 24446.48485 | H27: 26822.68481 | I27: -2376.199955 | J27: -0.08858919127
A29: Total Revenues
A30: Regionals | B30: 41601.37 | C30: 44045.90706 | D30: -2444.537055 | E30: -0.05549975511 | G30: 88755.47447 | H30: 92812.4167 | I30: -4056.942235 | J30: -0.04371120136
A31: ABC | B31: 17611.683 | C31: 18711.48116 | D31: -1099.79816 | E31: -0.05877664898 | G31: 37074.41944 | H31: 38118.06901 | I31: -1043.64957 | J31: -0.02737939243
A32: Relevo | B32: 544.304 | C32: 480.23878 | D32: 64.06522 | E32: 0.133402846 | G32: 0 | H32: 0 | I32: 0 | J32: n.a.
A33: Supplements & Magazines | B33: 2431.928 | C33: 2542.51612 | D33: -110.58812 | E33: -0.0434955433 | G33: 6313.47838 | H33: 7412.85475 | I33: -1099.37637 | J33: -0.1483067465
A34: Adjustments intersegment | B34: -2366.043 | C34: -2526.987845 | D34: 160.944845 | E34: 0.06369039144 | G34: -4700.69783 | H34: -5731.921145 | I34: 1031.223315 | J34: 0.1799088454
A35: Total Revenues | B35: 59823.242 | C35: 63253.15527 | D35: -3429.91327 | E35: -0.05422517273 | G35: 127442.6745 | H35: 132611.4193 | I35: -5168.74486 | J35: -0.03897661971
A37: EBITDA
A38: Regionals | B38: 2292.474 | C38: -469.6369033 | D38: 2762.110903 | E38: n.r. | G38: 6394.333002 | H38: 5524.199762 | I38: 870.13324 | J38: 0.1575129933
A39: ABC | B39: -2542.197 | C39: -657.59461 | D39: -1884.60239 | E39: n.r. | G39: -4680.18313 | H39: -6.71036 | I39: -4673.47277 | J39: n.r.
A40: Relevo | B40: -1136.91 | C40: -1679.00149 | D40: 542.09149 | E40: 0.3228654014 | G40: 0 | H40: 0 | I40: 0 | J40: n.a.
A41: Supplements & Magazines | B41: -543.022 | C41: -555.17132 | D41: 12.14932 | E41: 0.02188391144 | G41: 104.8599 | H41: 751.0328 | I41: -646.1729 | J41: -0.8603790673
A42: Total EBITDA | B42: -1929.655 | C42: -3361.404323 | D42: 1431.749323 | E42: 0.4259378479 | G42: 1819.009772 | H42: 6268.522202 | I42: -4449.51243 | J42: -0.7098184049
A44: EBITDA Margin
A45: Regionals | B45: 0.0551057333 | C45: -0.01066244141 | D45: 6.576817471 | G45: 0.07204437856 | H45: 0.05952005085 | I45: 1.252432771
A46: ABC | B46: -0.1443471927 | C46: -0.03514391001 | D46: -10.92032827 | G46: -0.1262375298 | H46: -0.0001760414463 | I46: -12.60614884
A47: Relevo | B47: -2.088740851 | C47: -3.496180567 | D47: 140.7439716
A48: Supplements & Magazines | B48: -0.2232886829 | C48: -0.2183550836 | D48: -0.4933599264 | G48: 0.01660889508 | H48: 0.1013149219 | I48: -8.470602681
A49: Total EBITDA Margin | B49: -0.0322559416 | C49: -0.05314208136 | D49: 2.088613976 | G49: 0.01427316069 | H49: 0.04726985228 | I49: -3.299669159
A51: EBITDA ex compens.
A52: Regionals | B52: 2317.828 | C52: 2105.523047 | D52: 212.3049533 | E52: 0.1008324054 | G52: 7905.412762 | H52: 8073.308162 | I52: -167.8954 | J52: -0.02079635716
A53: ABC | B53: -2538.053 | C53: 694.07492 | D53: -3232.12792 | E53: n.r. | G53: -3119.0628 | H53: 1423.72221 | I53: -4542.78501 | J53: n.r.
A54: Sports | B54: -1131.823 | C54: -1679.00149 | D54: 547.17849 | E54: 0.3258951783 | G54: 0 | H54: 0 | I54: 0 | J54: n.a.
A55: Supplements& Magazines | B55: -543.022 | C55: -514.57618 | D55: -28.44582 | E55: -0.05528009478 | G55: 104.85961 | H55: 805.56978 | I55: -700.71017 | J55: -0.8698317482
A56: Total EBITDA ex compens. | B56: -1895.07 | C56: 606.0202967 | D56: -2501.090297 | E56: n.r. | G56: 4891.209572 | H56: 10302.60015 | I56: -5411.39058 | J56: -0.5252451323
A58: EBIT
A59: Regionals | B59: -184.473 | C59: 115.1841667 | D59: -299.6571667 | E59: n.r. | G59: 10599.9988 | H59: 3641.010882 | I59: 6958.987915 | J59: n.r.
A60: ABC | B60: -4070.416 | C60: -3713.25998 | D60: -357.15602 | E60: -0.09618395209 | G60: -7980.76968 | H60: -5046.8764 | I60: -2933.89328 | J60: -0.5813285382
A61: Relevo | B61: -1146.164 | C61: -1788.49771 | D61: 642.33371 | E61: 0.3591470687 | G61: 4e-05 | H61: 0 | I61: 4e-05 | J61: n.a.
A62: Supplements & Magazines | B62: -610.416 | C62: -618.28721 | D62: 7.87121 | E62: 0.0127306693 | G62: -16.67797 | H62: 625.13514 | I62: -641.81311 | J62: n.r.
A63: Total EBIT | B63: -6011.469 | C63: -6004.860733 | D63: -6.608266668 | E63: -0.00110048625 | G63: 2602.551187 | H63: -780.7303783 | I63: 3383.281565 | J63: n.r.
A65: EBIT Margin
A66: Regionals | B66: -0.004434301082 | C66: 0.002615093532 | D66: -0.7049394614 | G66: 0.1194292393 | H66: 0.03922978208 | I66: 8.019945719
A67: ABC | B67: -0.2311202172 | C67: -0.198448212 | D67: -3.267200519 | G67: -0.2152635105 | H67: -0.132401156 | I67: -8.286235458
A68: Relevo | B68: -2.105742379 | C68: -3.724184269 | D68: 161.844189
A69: Supplements & Magazines | B69: -0.251000852 | C69: -0.2431792684 | D69: -0.7821583582 | G69: -0.002641645223 | H69: 0.08433122745 | I69: -8.697287268
A70: Total EBIT Margin | B70: -0.1004871819 | C70: -0.09493377378 | D70: -0.5553408107 | G70: 0.02042134785 | H70: -0.005887354063 | I70: 2.630870192

Sheet Audiovisual
A1: AUDIOVISUAL
A3: Thousand Euro | B3: 1Q25 | C3: 1Q24 | D3: Var Abs | E3: Var % | G3: 1H25 | H3: 1H24 | I3: Var Abs | J3: Var %
A5: Advertising revenues
A6: Local DTT | B6: 88.80024 | C6: 124.05305 | D6: -35.25281 | E6: -0.2841752782 | G6: 189.89754 | H6: 226.81783 | I6: -36.92029 | J6: -0.1627750781
A7: Radio | B7: 10.65 | C7: 9.75 | D7: 0.9 | E7: 0.09230769231 | G7: 20.7 | H7: 19.5 | I7: 1.2 | J7: 0.06153846154
A8: Content | B8: 0 | C8: 0 | D8: 0 | E8: n.a. | G8: 0 | H8: 0 | I8: 0 | J8: n.a.
A9: Adjustments intersegment | B9: 0 | C9: 0 | D9: 0 | E9: n.a. | G9: 0 | H9: 0 | I9: 0 | J9: n.a.
A10: Adjustments intersegment | B10: 99.45024 | C10: 133.80305 | D10: -34.35281 | E10: -0.2567416064 | G10: 210.59754 | H10: 246.31783 | I10: -35.72029 | J10: -0.14501707
A12: Other revenues
A13: Local DTT | B13: 222.60937 | C13: 188.23185 | D13: 34.37752 | E13: 0.1826339166 | G13: 478.70507 | H13: 374.8449 | I13: 103.86017 | J13: 0.2770750516
A14: Radio | B14: 909.52285 | C14: 883.89772 | D14: 25.62513 | E14: 0.02899105792 | G14: 1818.72985 | H14: 1768.52802 | I14: 50.20183 | J14: 0.02838622257
A15: Content | B15: 44.01102 | C15: 44.1333 | D15: -0.12228 | E15: -0.002770696957 | G15: 88.02204 | H15: 88.2666 | I15: -0.24456 | J15: -0.002770696957
A16: Adjustments intersegment | B16: -24.30189 | C16: -24.30189 | D16: 1.456612608e-13 | E16: 5.993824383e-15 | G16: -48.60378 | H16: -48.60378 | I16: -6.394884622e-14 | J16: -1.315717547e-15
A17: Total other revenues | B17: 1151.84135 | C17: 1091.96098 | D17: 59.88037 | E17: 0.05483746315 | G17: 2336.85318 | H17: 2183.03574 | I17: 153.81744 | J17: 0.07046033978
A19: Total revenues
A20: Local DTT | B20: 311.40961 | C20: 312.2849 | D20: -0.87529 | E20: -0.002802857263 | G20: 668.60261 | H20: 601.66273 | I20: 66.93988 | J20: 0.1112581462
A21: Radio | B21: 920.17285 | C21: 893.64772 | D21: 26.52513 | E21: 0.0296818639 | G21: 1839.42985 | H21: 1788.02802 | I21: 51.40183 | J21: 0.02874777656
A22: Content | B22: 44.01102 | C22: 44.1333 | D22: -0.12228 | E22: -0.002770696957 | G22: 88.02204 | H22: 88.2666 | I22: -0.24456 | J22: -0.002770696957
A23: Adjustments intersegment | B23: -24.30189 | C23: -24.30189 | D23: 1.172395514e-13 | E23: 4.824297674e-15 | G23: -48.60378 | H23: -48.60378 | I23: 3.552713679e-13 | J23: 7.30954193e-15
A24: Total revenues | B24: 1251.29159 | C24: 1225.76403 | D24: 25.52756 | E24: 0.02082583546 | G24: 2547.45072 | H24: 2429.35357 | I24: 118.09715 | J24: 0.04861258215
A26: EBITDA
A27: Local DTT | B27: -68.73267 | C27: -71.59087 | D27: 2.8582 | E27: 0.03992408529 | G27: -120.01183 | H27: -173.34148 | I27: 53.32965 | J27: 0.3076565978
A28: Radio | B28: 790.34623 | C28: 763.94935 | D28: 26.39688 | E28: 0.03455318078 | G28: 1585.92811 | H28: 1530.40929 | I28: 55.51882 | J28: 0.03627710598
A29: Content | B29: 1.47202 | C29: 2.63202 | D29: -1.16 | E29: -0.4407261343 | G29: 2.39144 | H29: 5.48943 | I29: -3.09799 | J29: -0.5643554977
A30: Adjustment for discontinued operations | B30: 0 | C30: 0 | D30: 0 | E30: n.a. | G30: 0 | H30: 0 | I30: 0 | J30: n.a.
A31: Total EBITDA | B31: 723.08558 | C31: 694.9905 | D31: 28.09508 | E31: 0.04042512811 | G31: 1468.30772 | H31: 1362.55724 | I31: 105.75048 | J31: 0.07761177064
A33: EBITDA margin
A34: Local DTT | B34: -0.2207146722 | C34: -0.2292485804 | D34: 0.8533908154 | G34: -0.1794965024 | H34: -0.2881040679 | I34: 10.86075655
A35: Radio | B35: 0.8589106166 | C35: 0.8548663337 | D35: 0.4044282948 | G35: 0.8621846112 | H35: 0.8559201941 | I35: 0.6264417035
A36: Content | B36: 0.03344662314 | C36: 0.05963796045 | D36: -2.619133731 | G36: 0.02716865003 | H36: 0.06219147446 | I36: -3.502282443
A37: Total EBITDA margin | B37: 0.5778713657 | C37: 0.5669855559 | D37: 1.088580976 | G37: 0.5763831694 | H37: 0.5608723476 | I37: 1.551082183
A39: EBITDA ex compens.
A40: Local DTT | B40: -68.46777 | C40: -71.59087 | D40: 3.1231 | E40: 0.04362427779 | G40: -119.74693 | H40: -173.40126 | I40: 53.65433 | J40: 0.3094229534
A41: Radio | B41: 790.34623 | C41: 763.94935 | D41: 26.39688 | E41: 0.03455318078 | G41: 1585.92811 | H41: 1530.40929 | I41: 55.51882 | J41: 0.03627710598
A42: Content | B42: 1.47202 | C42: 2.63202 | D42: -1.16 | E42: -0.4407261343 | G42: 2.39144 | H42: 5.48943 | I42: -3.09799 | J42: -0.5643554977
A43: Adjustment for discontinued operations | B43: =+B30 -> 0 | C43: =+C30 -> 0 | D43: 0 | E43: n.a.
A44: Total EBITDA ex compens. | B44: 723.08558 | C44: 694.9905 | D44: 28.09508 | E44: 0.04042512811 | G44: 1468.30772 | H44: 1362.55724 | I44: 105.75048 | J44: 0.07761177064
A46: EBIT
A47: Local DTT | B47: -71.59603 | C47: -75.07187 | D47: 3.47584 | E47: 0.04630016543 | G47: -125.54119 | H47: -180.11948 | I47: 54.57829 | J47: 0.3030115899
A48: Radio | B48: 788.69423 | C48: 762.29835 | D48: 26.39588 | E48: 0.03462670489 | G48: 1582.62911 | H48: 1527.11229 | I48: 55.51682 | J48: 0.03635411774
A49: Content | B49: 0.50102 | C49: 1.76702 | D49: -1.266 | E49: -0.7164604815 | G49: 0.46344 | H49: 3.76243 | I49: -3.29899 | J49: -0.8768242864
A50: Adjustment for discontinued operations | B50: 0 | C50: 0 | D50: 0 | E50: n.a. | G50: 0 | H50: 0 | I50: 0 | J50: n.a.
A51: Total EBIT | B51: 717.59922 | C51: 688.9935 | D51: 28.60572 | E51: 0.04151812753 | G51: 1457.55136 | H51: 1350.75524 | I51: 106.79612 | J51: 0.0790640057
A53: EBIT margin
A54: Local DTT | B54: -0.2299095073 | C54: -0.240395453 | D54: 1.048594571 | G54: -0.187766527 | H54: -0.2993695155 | I54: 11.16029886
A55: Radio | B55: 0.8571153018 | C55: 0.8530188495 | D55: 0.409645223 | G55: 0.8603911207 | H55: 0.8540762633 | I55: 0.6314857349
A56: Content | B56: 0.01138396702 | C56: 0.04003824776 | D56: -2.865428075 | G56: 0.005265044982 | H56: 0.04262574972 | I56: -3.736070474
A57: Total EBIT margin | B57: 0.5734868081 | C57: 0.5620930972 | D57: 1.139371099 | G57: 0.5721607678 | H57: 0.5560142651 | I57: 1.61465027

Sheet Classified&Digital Services
A1: CLASSIFIED & DIGITAL SERVICES
A3: Thousand Euro | B3: 1Q25 | C3: 1Q24 | D3: Var Abs | E3: Var % | G3: 1H25 | H3: 1H24 | I3: Var Abs | J3: Var %
A5: Circulation revenues
A6: Classifieds | B6: 0 | C6: 0 | D6: 0 | E6: n.a. | G6: 0 | H6: 0 | I6: 0 | J6: n.a.
A7: Digital Servicies | B7: 0 | C7: 0 | D7: 0 | E7: n.a. | G7: 0 | H7: 0 | I7: 0 | J7: n.a.
A8: Total circulation revenues | B8: 0 | C8: 0 | D8: 0 | E8: n.a. | G8: 0 | H8: 0 | I8: 0 | J8: n.a.
A10: Advertising revenues
A11: Classifieds | B11: 5085.94396 | C11: 4174.73991 | D11: 911.20405 | E11: 0.2182660644 | G11: 10120.42044 | H11: 8631.79056 | I11: 1488.62988 | J11: 0.1724589898
A12: Digital Servicies | B12: 241.73686 | C12: 722.2531 | D12: -480.51624 | E12: -0.6653017343 | G12: 409.63201 | H12: 1376.92347 | I12: -967.29146 | J12: -0.7025019771
A13: Total advertising revenues | B13: 5327.68082 | C13: 4896.99301 | D13: 430.68781 | E13: 0.08794944349 | G13: 10530.05245 | H13: 10008.71403 | I13: 521.33842 | J13: 0.05208845197
A15: Other revenues
A16: Classified | B16: 607.74657 | C16: 50.90149 | D16: 556.84508 | E16: n.r. | G16: 1189.02398 | H16: 141.23661 | I16: 1047.78737 | J16: n.r.
A17: Digital Servicies | B17: 0 | C17: 0 | D17: 0 | E17: n.a. | G17: 0 | H17: 2.42593 | I17: -2.42593 | J17: -1
A18: Total other revenues | B18: 607.74657 | C18: 50.90149 | D18: 556.84508 | E18: n.r. | G18: 1189.02398 | H18: 143.66254 | I18: 1045.36144 | J18: n.r.
A20: Total revenues
A21: Classified | B21: 5693.69053 | C21: 4225.6414 | D21: 1468.04913 | E21: 0.3474145085 | G21: 11309.44442 | H21: 8773.02717 | I21: 2536.41725 | J21: 0.2891153989
A22: Digital Servicies | B22: 241.73686 | C22: 722.2531 | D22: -480.51624 | E22: -0.6653017343 | G22: 409.63201 | H22: 1379.3494 | I22: -969.71739 | J22: -0.7030252016
A23: Total revenues | B23: 5935.42739 | C23: 4947.8945 | D23: 987.53289 | E23: 0.1995864888 | G23: 11719.07643 | H23: 10152.37657 | I23: 1566.69986 | J23: 0.1543185331
A25: EBITDA
A26: Classified | B26: 1197.7638 | C26: 793.68436 | D26: 404.07944 | E26: 0.5091185619 | G26: 2620.15112 | H26: 2012.06362 | I26: 608.0875 | J26: 0.3022208115
A27: Digital Servicies | B27: -45.64477 | C27: 108.82416 | D27: -154.46893 | E27: n.r. | G27: -51.46581 | H27: 184.31538 | I27: -235.78119 | J27: n.r.
A28: Total EBITDA | B28: 1152.11903 | C28: 902.50852 | D28: 249.61051 | E28: 0.2765741314 | G28: 2568.68531 | H28: 2196.379 | I28: 372.30631 | J28: 0.1695091375
A30: EBITDA margin
A31: Classified | B31: 0.2103668602 | C31: 0.1878257724 | D31: 2.254108781 | G31: 0.2316781464 | H31: 0.229346562 | I31: 0.2331584371
A32: Digital Servicies | B32: -0.1888200666 | C32: 0.1506731643 | D32: -33.94932309 | G32: -0.1256391316 | H32: 0.1336248669 | I32: -25.92639985
A33: Total EBITDA margin | B33: 0.1941088576 | C33: 0.1824025391 | D33: 1.170631849 | G33: 0.2191883742 | H33: 0.2163413645 | I33: 0.2847009723
A35: EBITDA ex compens.
A36: Classifieds | B36: 1260.99831 | C36: 1002.69044 | D36: 258.30787 | E36: 0.2576147729 | G36: 2683.38564 | H36: 2221.0697 | I36: 462.31594 | J36: 0.2081501269
A37: Digital Servicies | B37: -45.64477 | C37: 108.82416 | D37: -154.46893 | E37: n.r. | G37: -51.46581 | H37: 184.31538 | I37: -235.78119 | J37: n.r.
A38: Total EBITDA ex compens. | B38: 1215.35354 | C38: 1111.5146 | D38: 103.83894 | E38: 0.09342112105 | G38: 2631.91983 | H38: 2405.38508 | I38: 226.53475 | J38: 0.09417816377
A40: EBIT
A41: Classified | B41: 606.44198 | C41: 325.07327 | D41: 281.36871 | E41: 0.8655547409 | G41: 1386.26163 | H41: 1071.00553 | I41: 315.2561 | J41: 0.2943552495
A42: Digital Servicies | B42: -98.91457 | C42: 72.93036 | D42: -171.84493 | E42: n.r. | G42: -112.00961 | H42: 77.16348 | I42: -189.17309 | J42: n.r.
A43: Total EBIT | B43: 507.52741 | C43: 398.00363 | D43: 109.52378 | E43: 0.2751828671 | G43: 1274.25202 | H43: 1148.16901 | I43: 126.08301 | J43: 0.1098122392
A45: EBIT margin
A46: Classified | B46: 0.1065112297 | C46: 0.07692874033 | D46: 2.958248939 | G46: 0.122575573 | H46: 0.1220793586 | I46: 0.04962143797
A47: Digital Servicies | B47: -0.4091828197 | C47: 0.1009761813 | D47: -51.0159001 | G47: -0.2734395928 | H47: 0.055941939 | I47: -32.93815318
A48: Total EBIT margin | B48: 0.08550814906 | C48: 0.08043898875 | D48: 0.5069160315 | G48: 0.1087331436 | H48: 0.1130936192 | I48: -0.4360475649

Sheet Gastronomy & Agencies
A1: GASTRONOMY & AGENCIES
A3: Thousand Euro | B3: 1Q25 | C3: 1Q24 | D3: Var Abs | E3: Var % | G3: 1H25 | H3: 1H24 | I3: Var Abs | J3: Var %
A5: Circulation revenues
A6: Gastronomy | B6: 0 | C6: 0 | D6: 0 | E6: n.a. | G6: 0 | H6: 0 | I6: 0 | J6: n.a.
A7: Agencies & Others | B7: 0 | C7: 0 | D7: 0 | E7: n.a. | G7: 0 | H7: 0 | I7: 0 | J7: n.a.
A8: Total circulation revenues | B8: 0 | C8: 0 | D8: 0 | E8: 0.09808454921 | G8: 0 | H8: 0 | I8: 0 | J8: n.a.
A10: Advertising revenues
A11: Gastronomy | B11: 74.2 | C11: 12.915 | D11: 61.285 | E11: n.r. | G11: 156.24079 | H11: 70.925 | I11: 85.31579 | J11: n.r.
A12: Agencies & Others | B12: 0.03865 | C12: 30.26895 | D12: -30.2303 | E12: -0.998723114 | G12: 0.04504 | H12: 43.91154 | I12: -43.8665 | J12: -0.9989743015
A13: Total advertising revenues | B13: 74.23865 | C13: 43.18395 | D13: 31.0547 | E13: 0.09808454921 | G13: 156.28583 | H13: 114.83654 | I13: 41.44929 | J13: 0.360941648
A15: Other revenues
A16: Gastronomy | B16: 6177.96007 | C16: 5544.33493 | D16: 633.62514 | E16: 0.1142833447 | G16: 9535.52924 | H16: 8704.63145 | I16: 830.89779 | J16: 0.09545467775
A17: Agencies & Others | B17: 4786.43071 | C17: 3851.78223 | D17: 934.64848 | E17: 0.2426535106 | G17: 11043.89427 | H17: 10627.55811 | I17: 416.33616 | J17: 0.03917514783
A18: Total other revenues | B18: 10964.39078 | C18: 9396.11716 | D18: 1568.27362 | E18: 0.09808454921 | G18: 20579.42351 | H18: 19332.18956 | I18: 1247.23395 | J18: 0.06451591767
A20: Total revenues
A21: Gastronomy | B21: 6252.16007 | C21: 5557.24993 | D21: 694.91014 | E21: 0.1250456878 | G21: 9691.77003 | H21: 8775.55645 | I21: 916.21358 | J21: 0.1044051833
A22: Agencies & Others | B22: 4786.46936 | C22: 3882.05118 | D22: 904.41818 | E22: 0.2329743061 | G22: 11043.93931 | H22: 10671.46965 | I22: 372.46966 | J22: 0.03490331437
A23: Total revenues | B23: 11038.62943 | C23: 9439.30111 | D23: 1599.32832 | E23: 0.1694329168 | G23: 20735.70934 | H23: 19447.0261 | I23: 1288.68324 | J23: 0.06626633982
A25: EBITDA
A26: Gastronomy | B26: 1746.64757 | C26: 1662.75975 | D26: 83.88782 | E26: 0.05045095661 | G26: 2305.437115 | H26: 2009.177105 | I26: 296.26001 | J26: 0.1474534073
A27: Agencies & Others | B27: -1003.34314 | C27: -1010.56597 | D27: 7.22283 | E27: 0.007147311719 | G27: -500.06923 | H27: -350.91864 | I27: -149.15059 | J27: -0.4250289754
A28: Total EBITDA | B28: 743.30443 | C28: 652.19378 | D28: 91.11065 | E28: 0.1396987411 | G28: 1805.367885 | H28: 1658.258465 | I28: 147.10942 | J28: 0.0887132031
A30: EBITDA margin
A31: Gastronomy | B31: 0.2793670588 | C31: 0.2992055011 | D31: -1.983844228 | G31: 0.2378757552 | H31: 0.2289515333 | I31: 0.8924221864
A32: Agencies & Others | B32: -0.2096207172 | C32: -0.2603175288 | D32: 5.069681166 | G32: -0.04527996904 | H32: -0.03288381559 | I32: -1.239615345
A33: Total EBITDA margin | B33: 0.06733665938 | C33: 0.06909343948 | D33: -0.1756780098 | G33: 0.08706564388 | H33: 0.08527054247 | I33: 0.1795101409
A35: EBITDA ex compens. | G35: 0 | H35: 0 | I35: 0 | J35: 0
A36: Gastronomy | B36: 1762.29431 | C36: 1663.15383 | D36: 99.14048 | E36: 0.05960992796 | G36: 2322.052665 | H36: 2010.709765 | I36: 311.3429 | J36: 0.1548422877
A37: Agencies & Others | B37: -913.22011 | C37: -889.92175 | D37: -23.29836 | E37: -0.02618023439 | G37: -361.57366 | H37: -188.05347 | I37: -173.52019 | J37: -0.9227172995
A38: Total EBITDA ex compens. | B38: 849.0742 | C38: 773.23208 | D38: 75.84212 | E38: 0.09808454921 | G38: 1960.479005 | H38: 1822.656295 | I38: 137.82271 | J38: 0.07561640139
A40: EBIT
A41: Gastronomy | B41: 1665.719415 | C41: 1580.57415 | D41: 85.145265 | E41: 0.05386983268 | G41: 2143.852315 | H41: 1845.365225 | I41: 298.48709 | J41: 0.1617496016
A42: Agencies & Others | B42: -1439.0938 | C42: -1404.7963 | D42: -34.2975 | E42: -0.02441457171 | G42: -1399.75763 | H42: -1167.53637 | I42: -232.22126 | J42: -0.1988985234
A43: Total EBIT | B43: 226.625615 | C43: 175.77785 | D43: 50.847765 | E43: 0.2892728805 | G43: 744.094685 | H43: 677.828855 | I43: 66.26583 | J43: 0.09776189006
A45: EBIT margin
A46: Gastronomy | B46: 0.2793670588 | C46: 0.2992055011 | D46: -1.983844228 | G46: 0.2378757552 | H46: 0.2289515333 | I46: 0.8924221864
A47: Agencies & Others | B47: -0.2096207172 | C47: -0.2603175288 | D47: 5.069681166 | G47: -0.04527996904 | H47: -0.03288381559 | I47: -1.239615345
A48: Total EBIT margin | B48: 0.02053023126 | C48: 0.01862191363 | D48: 0.03179319991 | G48: 0.03588469884 | H48: 0.03485514194 | I48: 0.05142134851
